fUST/lending_fUST_20250911
["ID","MTS","AMOUNT","RATE_DAILY","PERIOD"]
[384772729,1757531445142,-480.0,0.00014343,2]
[384772730,1757531445151,-480.0,0.00014343,2]
[384772731,1757531445160,-480.0,0.00014343,2]
[384772732,1757531445169,-500.0,0.00014344,2]
[384772733,1757531445178,-480.0,0.00014344,2]
[384772734,1757531445188,-480.0,0.00014344,2]
[384772735,1757531445196,-480.0,0.00014344,2]
[384772736,1757531445205,-151.0,0.00014344,2]
[384772737,1757531445214,-151.0,0.00014344,2]
[384772738,1757531445223,-151.0,0.00014344,2]
[384772739,1757531445233,-274.599393,0.00014344,2]
[384772740,1757531445242,-151.0,0.00014344,2]
[384772741,1757531445251,-274.599393,0.00014344,2]
[384772742,1757531445260,-274.599393,0.00014344,2]
[384772743,1757531445270,-274.599393,0.00014344,2]
[384772744,1757531445278,-151.0,0.00014344,2]
[384772745,1757531445287,-151.0,0.00014344,2]
[384772746,1757531445297,-151.0,0.00014344,2]
[384772747,1757531445306,-151.0,0.00014344,2]
[384772748,1757531445315,-151.0,0.00014345,2]
[384772749,1757531445324,-151.0,0.00014345,2]
[384772750,1757531445333,-151.0,0.00014345,2]
[384772751,1757531445343,-151.0,0.00014345,2]
[384772752,1757531445352,-151.0,0.00014345,2]
[384772753,1757531445362,-255.901845,0.00014345,2]
[384772754,1757531445372,-259.58799711,0.00014517,2]
[384772755,1757531445382,-480.0,0.0001452,2]
[384772756,1757531445391,-153.69088299,0.00014614,2]
[384772757,1757531445401,-480.0,0.00014615,2]
[384772758,1757531445410,-480.0,0.00014615,2]
[384772759,1757531445420,-223.22456506,0.00014615,2]
[384772760,1757531445429,-500.0,0.00014615,2]
[384772761,1757531445438,-500.0,0.00014615,2]
[384772762,1757531445448,-500.0,0.00014615,2]
[384772763,1757531445457,-500.0,0.00014615,2]
[384772764,1757531445466,-497.68567008,0.00014615,2]
[384772765,1757531445476,-455.46835781,0.00014616,2]
[384772766,1757531445485,-487.20596841,0.00014616,2]
[384772767,1757531445494,-480.0,0.00014616,2]
[384772768,1757531445503,-480.0,0.00014616,2]
[384772769,1757531445512,-480.0,0.00014616,2]
[384772770,1757531445521,-343.0,0.00014617,2]
[384772771,1757531445530,-480.0,0.00014617,2]
[384772772,1757531445540,-480.0,0.00014617,2]
[384772773,1757531445549,-480.0,0.00014617,2]
[384772774,1757531445558,-200.17362594,0.00014617,2]
[384772775,1757531445567,-480.0,0.00014617,2]
[384772776,1757531445577,-500.0,0.00014618,2]
[384772777,1757531445586,-151.0,0.00014618,2]
[384772778,1757531445595,-151.0,0.00014618,2]
[384772779,1757531445604,-151.0,0.00014618,2]
[384772780,1757531445614,-151.0,0.00014618,2]
[384772781,1757531445624,-151.0,0.00014618,2]
[384772782,1757531445637,-151.0,0.00014618,2]
[384772783,1757531445647,-151.0,0.00014618,2]
[384772785,1757531445656,-151.0,0.00014618,2]
[384772786,1757531445665,-151.0,0.00014618,2]
[384772787,1757531445675,-151.0,0.00014618,2]
[384772788,1757531445684,-480.0,0.00014618,2]
[384772789,1757531445694,-480.0,0.00014618,2]
[384772790,1757531445703,-480.0,0.00014618,2]
[384772792,1757531445712,-151.0,0.00014618,2]
[384772794,1757531445722,-430.557456,0.00014618,2]
[384772797,1757531445736,-430.557456,0.00014618,2]
[384772798,1757531445747,-430.557456,0.00014618,2]
[384772801,1757531445762,-430.557456,0.00014618,2]
[384772803,1757531445771,-500.0,0.00014625,2]
[384772805,1757531445781,-500.0,0.00014625,2]
[384772807,1757531445791,-500.0,0.00014625,2]
[384772809,1757531445800,-500.0,0.00014625,2]
[384772811,1757531445810,-500.0,0.00014625,2]
[384772813,1757531445819,-500.0,0.00014654,2]
[384772815,1757531445828,-500.0,0.00014654,2]
[384772817,1757531445838,-500.0,0.00014654,2]
[384772819,1757531445847,-500.0,0.00014727,2]
[384772821,1757531445857,-500.0,0.00014727,2]
[384772823,1757531445866,-500.0,0.00014727,2]
[384772825,1757531445875,-151.0,0.00014762,2]
[384772827,1757531445885,-480.0,0.00014794,2]
[384772829,1757531445895,-151.0,0.000148,2]
[384772831,1757531445904,-151.0,0.000148,2]
[384772833,1757531445914,-151.0,0.000148,2]
[384772835,1757531445924,-151.0,0.000148,2]
[384772837,1757531445934,-153.328275,0.000148,2]
[384772839,1757531445943,-153.328275,0.000148,2]
[384772841,1757531445953,-153.328275,0.000148,2]
[384772843,1757531445962,-153.328275,0.000148,2]
[384772845,1757531445972,-151.0,0.000148,2]
[384772847,1757531445981,-500.81739419,0.000148,2]
[384772849,1757531445990,-500.0,0.000148,2]
[384772851,1757531445999,-500.0,0.000148,2]
[384772852,1757531446009,-430.59196184,0.00014831,2]
[384772853,1757531446018,-1500.0,0.00014868,2]
[384772854,1757531446027,-500.0,0.00014884,2]
[384772855,1757531446036,-500.0,0.00014884,2]
[384772856,1757531446046,-480.0,0.00014889,2]
[384772857,1757531446055,-480.0,0.00014889,2]
[384772858,1757531446065,-480.0,0.0001489,2]
[384772859,1757531446074,-490.75554798,0.0001489,2]
[384772860,1757531446083,-275.4598848,0.00014891,2]
[384772861,1757531446092,-480.0,0.00014891,2]
[384772862,1757531446102,-480.0,0.00014891,2]
[384772863,1757531446111,-480.0,0.00014891,2]
[384772864,1757531446120,-500.0,0.00014892,2]
[384772865,1757531446130,-480.0,0.00014892,2]
[384772866,1757531446140,-480.0,0.00014892,2]
[384772867,1757531446149,-160.0,0.00014913,2]
[384772868,1757531446158,-1752.9056743,0.00014983,2]
[384772870,1757531446168,-10708.77449184,0.00015,2]
[384772872,1757531446177,-151.0,0.00015,2]
[384772873,1757531446187,-151.0,0.00015,2]
[384772874,1757531446196,-151.0,0.00015,2]
[384772875,1757531446205,-151.0,0.00015,2]
[384772876,1757531446214,-151.0,0.00015,2]
[384772877,1757531446224,-239.312782,0.00015,2]
[384772878,1757531446233,-183.986532,0.00015,2]
[384772879,1757531446242,-151.0,0.00015,2]
[384772880,1757531446252,-183.986532,0.00015,2]
[384772881,1757531446261,-183.986532,0.00015,2]
[384772882,1757531446270,-183.986532,0.00015,2]
[384772883,1757531446279,-151.0,0.00015,2]
[384772884,1757531446288,-151.0,0.00015,2]
[384772885,1757531446297,-151.0,0.00015,2]
[384772886,1757531446306,-151.0,0.00015,2]
[384772887,1757531446316,-761.271209,0.00015,2]
[384772888,1757531446325,-761.271209,0.00015,2]
[384772889,1757531446334,-761.271209,0.00015,2]
[384772890,1757531446343,-761.271209,0.00015,2]
[384772891,1757531446352,-151.0,0.00015,2]
[384772892,1757531446361,-151.0,0.00015,2]
[384772893,1757531446371,-151.0,0.00015,2]
[384772894,1757531446380,-151.0,0.00015,2]
[384772896,1757531446389,-480.0,0.00015068,2]
[384772897,1757531446398,-211.7875126,0.00015068,2]
[384772898,1757531446408,-501.82497982,0.00015104,2]
[384772899,1757531446417,-480.0,0.00015163,2]
[384772900,1757531446427,-480.0,0.00015163,2]
[384772901,1757531446437,-500.0,0.00015163,2]
[384772902,1757531446446,-501.05278782,0.00015163,2]
[384772903,1757531446456,-480.0,0.00015165,2]
[384772904,1757531446465,-500.0,0.00015166,2]
[384772905,1757531446475,-1000.0,0.00015173,2]
[384772906,1757531446484,-500.0,0.00015173,2]
[384772907,1757531446582,-1000.0,0.00015173,2]
[384772908,1757531446592,-367.04078439,0.00015173,2]
[384772909,1757531446601,-151.0,0.00015176,2]
[384772910,1757531446611,-186.675728,0.00015176,2]
[384772911,1757531446620,-186.675728,0.00015176,2]
[384772912,1757531446633,-186.675728,0.00015176,2]
[384772913,1757531446642,-186.675728,0.00015176,2]
[384772914,1757531446651,-151.0,0.00015176,2]
[384772915,1757531446662,-1000.0,0.00015202,2]
[384772916,1757531446674,-391.1261238,0.00015211,2]
[384772917,1757531446684,-500.0,0.00015267,2]
[384772918,1757531446693,-151.0,0.00015301,2]
[384772919,1757531446704,-151.0,0.00015301,2]
[384772920,1757531446713,-151.0,0.00015301,2]
[384772921,1757531446722,-161.786827,0.00015301,2]
[384772922,1757531446732,-151.0,0.00015301,2]
[384772923,1757531446741,-151.0,0.00015301,2]
[384772924,1757531446751,-163.272688,0.00015301,2]
[384772925,1757531446760,-151.0,0.00015301,2]
[384772926,1757531446770,-151.0,0.00015301,2]
[384772927,1757531446780,-151.0,0.00015301,2]
[384772928,1757531446789,-480.0,0.00015342,2]
[384772929,1757531446799,-200.0,0.0001538,2]
[384772930,1757531446808,-160.0,0.00015396,2]
[384772931,1757531446818,-2000.0,0.00015416,2]
[384772932,1757531446827,-1000.0,0.00015432,2]
[384772933,1757531446836,-480.0,0.00015437,2]
[384772934,1757531446846,-480.0,0.00015437,2]
[384772935,1757531446855,-307.85,0.00015439,2]
[384772936,1757531446865,-415.0,0.0001544,2]
[384772937,1757531446874,-260.0,0.0001546,2]
[384772938,1757531446884,-151.0,0.00015616,2]
[384772939,1757531446894,-151.0,0.00015616,2]
[384772940,1757531446903,-151.0,0.00015616,2]
[384772941,1757531446912,-151.0,0.00015616,2]
[384772942,1757531446921,-151.0,0.00015616,2]
[384772943,1757531446930,-480.0,0.00015616,2]
[384772944,1757531446939,-480.0,0.00015711,2]
[384772945,1757531446948,-480.0,0.00015711,2]
[384772946,1757531446958,-151.0,0.00015714,2]
[384772947,1757531446967,-151.0,0.00015714,2]
[384772948,1757531446976,-151.0,0.00015714,2]
[384772949,1757531446985,-151.0,0.00015714,2]
[384772950,1757531446994,-151.0,0.00015714,2]
[384772951,1757531447003,-500.0,0.0001575,2]
[384772952,1757531447013,-846.88337432,0.00015778,2]
[384772953,1757531447022,-217.67150996,0.00015778,2]
[384772954,1757531447032,-530.87637315,0.00015778,2]
[384772955,1757531447041,-233.08191698,0.00015778,2]
[384772956,1757531447051,-417.15472785,0.00015778,2]
[384772957,1757531447061,-160.0,0.00015778,2]
[384772958,1757531447072,-160.0,0.00015778,2]
[384772959,1757531447081,-160.0,0.00015778,2]
[384772960,1757531447091,-160.0,0.00015778,2]
[384772961,1757531447100,-160.0,0.00015778,2]
[384772962,1757531447109,-151.0,0.00015778,2]
[384772963,1757531447118,-151.0,0.00015778,2]
[384772964,1757531447128,-151.0,0.00015778,2]
[384772965,1757531447137,-274.599393,0.00015778,2]
[384772966,1757531447146,-151.0,0.00015778,2]
[384772967,1757531447156,-274.599393,0.00015778,2]
[384772968,1757531447165,-274.599393,0.00015778,2]
[384772969,1757531447175,-274.599393,0.00015778,2]
[384772970,1757531447184,-151.0,0.00015778,2]
[384772971,1757531447194,-151.0,0.00015778,2]
[384772972,1757531447203,-151.0,0.00015778,2]
[384772973,1757531447212,-151.0,0.00015778,2]
[384772974,1757531447222,-600.0,0.0001587,2]
[384772975,1757531447231,-480.0,0.0001589,2]
[384772976,1757531447240,-2500.0,0.00015964,2]
[384772977,1757531447249,-500.0,0.0001598,2]
[384772978,1757531447259,-480.0,0.00015985,2]
[384772979,1757531447268,-480.0,0.00015985,2]
[384772980,1757531447277,-360.0,0.00016008,2]
[384772981,1757531447286,-1304.96428479,0.00016068,2]
[384772982,1757531447296,-480.0,0.00016164,2]
[384772983,1757531447305,-480.0,0.00016259,2]
[384772984,1757531447314,-480.0,0.00016259,2]
[384772985,1757531447324,-151.0,0.00016261,2]
[384772986,1757531447333,-151.0,0.00016261,2]
[384772987,1757531447343,-151.0,0.00016261,2]
[384772988,1757531447352,-151.0,0.00016261,2]
[384772989,1757531447363,-151.0,0.00016261,2]
[384772990,1757531447372,-151.0,0.00016261,2]
[384772991,1757531447382,-151.0,0.00016261,2]
[384772992,1757531447392,-151.0,0.00016261,2]
[384772993,1757531447401,-211.4,0.00016261,2]
[384772994,1757531447411,-430.557456,0.00016261,2]
[384772995,1757531447420,-430.557456,0.00016261,2]
[384772996,1757531447430,-430.557456,0.00016261,2]
[384772997,1757531447439,-430.557456,0.00016261,2]
[384772998,1757531447449,-480.0,0.00016438,3]
[384772999,1757531447458,-500.0,0.00016438,2]
[384773000,1757531447467,-480.0,0.00016438,2]
[384773001,1757531447477,-151.0,0.00016438,2]
[384773002,1757531447486,-151.0,0.00016438,2]
[384773003,1757531447495,-151.0,0.00016438,2]
[384773004,1757531447505,-151.0,0.00016438,2]
[384773005,1757531447514,-151.0,0.00016438,2]
[384773006,1757531447523,-151.0,0.00016438,2]
[384773007,1757531447532,-151.0,0.00016438,2]
[384773008,1757531447542,-151.0,0.00016438,2]
[384773009,1757531447551,-151.0,0.00016438,2]
[384773010,1757531447560,-151.0,0.00016438,2]
[384773011,1757531447570,-151.0,0.00016438,2]
[384773012,1757531447579,-3000.0,0.00016512,2]
[384773013,1757531447589,-480.0,0.00016533,2]
[384773014,1757531447598,-480.0,0.00016533,2]
[384773015,1757531447607,-460.0,0.00016556,2]
[384773016,1757531447617,-151.0,0.00016711,2]
[384773017,1757531447629,-168.3888056,0.00016711,2]
[384773018,1757531447639,-151.0,0.00016711,2]
[384773019,1757531447647,-151.0,0.00016711,2]
[384773020,1757531447656,-151.83333832,0.00016711,2]
[384773021,1757531447665,-151.0,0.00016711,2]
[384773022,1757531447675,-151.0,0.00016711,2]
[384773023,1757531447685,-250.0,0.00016711,2]
[384773024,1757531447694,-151.0,0.00016711,2]
[384773025,1757531447704,-250.0,0.00016711,2]
[384773026,1757531447713,-151.0,0.00016711,2]
[384773027,1757531447722,-151.0,0.00016711,2]
[384773028,1757531447731,-250.0,0.00016711,2]
[384773029,1757531447742,-18603.8837,0.00016711,2]
[384773030,1757531447754,-151.0,0.00016711,2]
[384773031,1757531447764,-250.0,0.00016711,2]
[384773032,1757531447774,-151.0,0.00016711,2]
[384773033,1757531447784,-234.19352325,0.00016711,2]
[384773034,1757531447794,-151.0,0.00016711,2]
[384773035,1757531447803,-151.0,0.00016711,2]
[384773036,1757531447813,-151.0,0.00016711,2]
[384773037,1757531447823,-151.0,0.00016711,2]
[384773038,1757531447832,-151.72379802,0.00016711,2]
[384773039,1757531447841,-151.0,0.00016711,2]
[384773040,1757531447850,-151.0,0.00016711,2]
[384773041,1757531447859,-151.0,0.00016711,2]
[384773042,1757531447868,-151.0,0.00016711,2]
[384773043,1757531447877,-151.0,0.00016711,2]
[384773044,1757531447887,-151.0,0.00016711,2]
[384773045,1757531447897,-151.0,0.00016711,2]
[384773046,1757531447907,-187.8704837,0.00016711,2]
[384773047,1757531447915,-151.0,0.00016711,2]
[384773048,1757531447926,-151.0,0.00016711,2]
[384773049,1757531447936,-151.0,0.00016711,2]
[384773050,1757531447945,-151.0,0.00016711,2]
[384773051,1757531447955,-151.0,0.00016711,2]
[384773052,1757531447964,-151.0,0.00016711,2]
[384773053,1757531447974,-151.0,0.00016711,2]
[384773054,1757531447983,-281.452362,0.00016711,2]
[384773055,1757531447992,-153.328275,0.00016711,2]
[384773056,1757531448001,-153.328275,0.00016711,2]
[384773057,1757531448010,-153.328275,0.00016711,2]
[384773058,1757531448019,-153.328275,0.00016711,2]
[384773059,1757531448028,-480.0,0.00016712,2]
[384773060,1757531448038,-480.0,0.00016807,2]
[384773061,1757531448046,-480.0,0.00016807,2]
[384773062,1757531448055,-1152.13497513,0.0001689,2]
[384773063,1757531448065,-618.96,0.00016986,2]
[384773064,1757531448074,-151.0,0.00016994,2]
[384773065,1757531448084,-761.271209,0.00016994,2]
[384773066,1757531448093,-761.271209,0.00016994,2]
[384773067,1757531448102,-761.271209,0.00016994,2]
[384773068,1757531448112,-761.271218,0.00016994,2]
[384773069,1757531448125,-151.0,0.00016994,2]
[384773070,1757531448134,-151.0,0.00016994,2]
[384773071,1757531448144,-207.262156,0.00016994,2]
[384773072,1757531448154,-975.0,0.00017031,2]
[384773073,1757531448164,-2154.0,0.00017031,2]
[384773074,1757531448174,-634.0,0.00017031,2]
[384773075,1757531448184,-183.986532,0.00017031,2]
[384773076,1757531448193,-151.0,0.00017031,2]
[384773077,1757531448202,-183.986532,0.00017031,2]
[384773078,1757531448211,-183.986532,0.00017031,2]
[384773079,1757531448220,-183.986532,0.00017031,2]
[384773080,1757531448230,-151.0,0.00017031,2]
[384773081,1757531448239,-151.0,0.00017031,2]
[384773082,1757531448248,-151.0,0.00017031,2]
[384773083,1757531448257,-186.675728,0.00017031,2]
[384773084,1757531448267,-186.675728,0.00017031,2]
[384773085,1757531448276,-186.675728,0.00017031,2]
[384773086,1757531448286,-186.675732,0.00017031,2]
[384773087,1757531448295,-205.131633,0.00017031,2]
[384773088,1757531448305,-4027.0,0.00017031,2]
[384773089,1757531448314,-570.30542376,0.00017058,2]
[384773090,1757531448324,-160.06589395,0.00017058,2]
[384773091,1757531448332,-571.30130751,0.00017058,2]
[384773092,1757531448342,-500.0,0.00017058,2]
[384773093,1757531448352,-500.0,0.00017058,2]
[384773094,1757531448361,-500.0,0.00017058,2]
[384773095,1757531448371,-500.0,0.00017058,2]
[384773096,1757531448380,-500.0,0.00017058,2]
[384773097,1757531448390,-500.0,0.00017058,2]
[384773098,1757531448399,-500.0,0.00017058,2]
[384773099,1757531448409,-500.0,0.00017058,2]
[384773100,1757531448419,-500.0,0.00017058,2]
[384773101,1757531448429,-500.0,0.00017058,2]
[384773102,1757531448439,-500.0,0.00017058,2]
[384773103,1757531448448,-500.0,0.00017058,2]
[384773104,1757531448458,-500.0,0.00017058,2]
[384773105,1757531448467,-500.0,0.00017058,2]
[384773106,1757531448477,-621.75536897,0.0001706,2]
[384773107,1757531448486,-480.0,0.00017081,2]
[384773108,1757531448497,-480.0,0.00017081,2]
[384773109,1757531448507,-560.0,0.00017104,2]
[384773110,1757531448516,-196.0,0.00017232,2]
[384773111,1757531448526,-196.0,0.0001728,2]
[384773112,1757531448535,-196.0,0.000173,2]
[384773113,1757531448545,-243.7,0.00017301,2]
[384773114,1757531448555,-196.0,0.00017308,2]
[384773115,1757531448565,-480.0,0.00017355,2]
[384773116,1757531448575,-480.0,0.00017355,2]
[384773117,1757531448585,-151.0,0.00017374,2]
[384773118,1757531448594,-151.0,0.00017374,2]
[384773119,1757531448604,-212.918457,0.00017374,2]
[384773120,1757531448613,-151.0,0.00017374,2]
[384773121,1757531448623,-151.0,0.00017374,2]
[384773122,1757531448636,-151.0,0.00017374,2]
[384773123,1757531448646,-196.0,0.00017374,2]
[384773124,1757531448656,-500.0,0.00017385,2]
[384773125,1757531448666,-158.07470497,0.00017385,2]
[384773126,1757531448677,-196.0,0.00017432,2]
[384773127,1757531448780,-196.0,0.00017464,2]
[384773128,1757531448789,-196.0,0.00017485,2]
[384773129,1757531448799,-196.0,0.00017542,2]
[384773130,1757531448809,-1000.0,0.00017606,2]
[384773131,1757531448819,-1000.0,0.00017606,2]
[384773132,1757531448829,-1000.0,0.00017606,2]
[384773133,1757531448838,-500.0,0.00017606,2]
[384773134,1757531448848,-1000.0,0.00017606,2]
[384773135,1757531448857,-500.0,0.00017606,2]
[384773136,1757531448867,-1000.0,0.00017606,2]
[384773137,1757531448877,-1000.0,0.00017606,2]
[384773138,1757531448886,-1000.0,0.00017606,2]
[384773139,1757531448895,-1000.0,0.00017606,2]
[384773140,1757531448904,-1000.0,0.00017606,2]
[384773141,1757531448914,-199.927657,0.00017608,2]
[384773142,1757531448924,-151.0,0.00017608,2]
[384773143,1757531448934,-151.0,0.00017608,2]
[384773144,1757531448943,-151.0,0.00017608,2]
[384773145,1757531448952,-151.0,0.00017608,2]
[384773146,1757531448962,-500.0,0.00017608,2]
[384773147,1757531448972,-463.4881109,0.00017629,2]
[384773148,1757531448982,-480.0,0.00017629,2]
[384773149,1757531448992,-660.0,0.00017652,2]
[384773150,1757531449001,-151.0,0.00017672,2]
[384773151,1757531449011,-151.0,0.00017672,2]
[384773152,1757531449020,-151.0,0.00017672,2]
[384773153,1757531449030,-222.799,0.00017672,2]
[384773154,1757531449040,-151.0,0.00017672,2]
[384773155,1757531449049,-151.0,0.00017724,2]
[384773156,1757531449059,-151.0,0.00017724,2]
[384773157,1757531449070,-151.0,0.00017724,2]
[384773158,1757531449080,-151.0,0.00017724,2]
[384773159,1757531449089,-151.0,0.00017724,2]
[384773160,1757531449099,-151.0,0.00017724,2]
[384773161,1757531449109,-243.43633916,0.00017724,2]
[384773162,1757531449119,-151.0,0.00017724,2]
[384773163,1757531449128,-151.0,0.00017724,2]
[384773164,1757531449138,-151.0,0.00017724,2]
[384773165,1757531449148,-151.0,0.00017724,2]
[384773166,1757531449158,-151.0,0.00017724,2]
[384773167,1757531449168,-151.0,0.00017724,2]
[384773168,1757531449177,-151.0,0.00017724,2]
[384773169,1757531449187,-196.0,0.00017738,2]
[384773170,1757531449197,-196.0,0.00017892,2]
[384773171,1757531449207,-480.0,0.00017903,2]
[384773172,1757531449217,-196.0,0.00017919,2]
[384773173,1757531449226,-467.64828555,0.00017933,2]
[384773174,1757531449235,-196.0,0.00017944,2]
[384773175,1757531449245,-196.0,0.00017981,2]
[384773176,1757531449254,-196.0,0.00018003,2]
[384773177,1757531449264,-196.0,0.00018099,2]
[384773178,1757531449273,-474.839,0.00018116,2]
[384773179,1757531449283,-172.68415965,0.00018116,2]
[384773180,1757531449292,-151.0,0.00018116,2]
[384773181,1757531449301,-151.0,0.00018116,2]
[384773182,1757531449311,-151.0,0.00018116,2]
[384773183,1757531449320,-274.599393,0.00018116,2]
[384773184,1757531449329,-298.953343,0.00018116,2]
[384773185,1757531449338,-274.599393,0.00018116,2]
[384773186,1757531449347,-274.599393,0.00018116,2]
[384773187,1757531449357,-274.599393,0.00018116,2]
[384773188,1757531449366,-151.0,0.00018116,2]
[384773189,1757531449375,-151.0,0.00018116,2]
[384773190,1757531449385,-151.0,0.00018116,2]
[384773191,1757531449394,-151.0,0.00018116,2]
[384773192,1757531449403,-151.0,0.00018116,2]
[384773193,1757531449413,-1500.0,0.00018154,2]
[384773194,1757531449423,-1000.55863441,0.00018154,2]
[384773195,1757531449432,-1500.0,0.00018154,2]
[384773196,1757531449442,-1500.0,0.00018154,2]
[384773197,1757531449451,-1500.0,0.00018154,2]
[384773198,1757531449461,-1500.0,0.00018154,2]
[384773199,1757531449471,-480.0,0.00018177,2]
[384773200,1757531449480,-196.0,0.00018189,2]
[384773201,1757531449490,-760.0,0.000182,2]
[384773202,1757531449499,-196.0,0.00018246,2]
[384773203,1757531449508,-243.7,0.00018273,2]
[384773204,1757531449518,-196.0,0.00018291,2]
[384773205,1757531449528,-151.0,0.000184,2]
[384773206,1757531449537,-1304.96428479,0.00018441,2]
[384773207,1757531449546,-480.0,0.00018451,2]
[384773208,1757531449555,-430.557456,0.00018452,2]
[384773209,1757531449565,-430.557456,0.00018452,2]
[384773210,1757531449574,-430.557456,0.00018452,2]
[384773211,1757531449583,-430.557462,0.00018452,2]
[384773212,1757531449593,-196.0,0.00018459,2]
[384773213,1757531449602,-196.0,0.00018483,2]
[384773214,1757531449611,-196.0,0.0001849,2]
[384773215,1757531449621,-196.0,0.00018589,2]
[384773216,1757531449634,-196.0,0.00018594,2]
[384773217,1757531449643,-788.3898903,0.00018702,2]
[384773218,1757531449653,-2000.0,0.00018702,2]
[384773219,1757531449663,-480.0,0.00018725,2]
[384773220,1757531449673,-196.0,0.00018809,2]
[384773221,1757531449682,-524.44,0.00018999,2]
[384773222,1757531449691,-197.210298,0.00019064,2]
[384773223,1757531449701,-565.938295,0.00019064,2]
[384773224,1757531449710,-10143.33737144,0.00019122,2]
[384773225,1757531449719,-1000.0,0.00019123,5]
[384773226,1757531449728,-5000.0,0.00019178,2]
[384773227,1757531449737,-243.7,0.00019245,2]
[384773228,1757531449747,-2500.0,0.0001925,2]
[384773229,1757531449756,-151.0,0.000194,2]
[384773230,1757531449765,-544.47593066,0.00019781,2]
[384773231,1757531449775,-2175.7258189,0.00019781,2]
[384773232,1757531449785,-3000.0,0.00019798,2]
[384773233,1757531449795,-151.0,0.000199,2]
[384773234,1757531449805,-151.0,0.000199,2]
[384773235,1757531449814,-151.0,0.000199,2]
[384773236,1757531449824,-151.0,0.000199,2]
[384773237,1757531449833,-151.0,0.000199,2]
[384773238,1757531449842,-151.0,0.000199,2]
[384773239,1757531449852,-151.0,0.000199,2]
[384773240,1757531449861,-153.328275,0.000199,2]
[384773241,1757531449871,-153.328275,0.000199,2]
[384773242,1757531449880,-153.328275,0.000199,2]
[384773243,1757531449890,-153.328281,0.000199,2]
[384773244,1757531449899,-12574.8898861,0.000199,2]
[384773245,1757531449909,-160.0,0.0002,2]
[384773246,1757531449919,-201.4889751,0.0002,2]
[384773247,1757531449928,-204.88,0.0002,2]
[384773248,1757531449938,-605.59559158,0.00020015,2]
[384773249,1757531449947,-176.012848,0.00020187,2]
[384773250,1757531449956,-160.0,0.000202,2]
[384773251,1757531449966,-243.7,0.00020218,2]
[384773252,1757531449975,-151.0,0.000203,3]
[384773253,1757531449985,-151.0,0.00020327,2]
[384773254,1757531449994,-151.0,0.00020327,2]
[384773255,1757531450004,-285.064721,0.00020327,2]
[384773256,1757531450013,-151.0,0.00020327,2]
[384773257,1757531450022,-151.0,0.00020327,2]
[384773258,1757531450032,-151.0,0.00020327,2]
[384773259,1757531450041,-151.0,0.00020327,2]
[384773260,1757531450050,-151.0,0.00020327,2]
[384773261,1757531450059,-151.0,0.00020327,2]
[384773262,1757531450069,-151.0,0.00020327,2]
[384773263,1757531450078,-151.0,0.00020327,2]